bitfinex/quotes_BTCUSD_20240820
["timestamp","ask_amount","ask_price","bid_price","bid_amount"]
[1724175171267,0.00321,58986.0,58985.0,0.26776188]
[1724175171823,0.00321,58986.0,58985.0,0.23038001]
[1724175172024,0.00321,58986.0,58985.0,0.26776164]
[1724175172226,0.00295026,59001.0,58985.0,0.26776164]
[1724175172227,0.0755,59001.0,58994.0,0.03403]
[1724175172429,0.001,59008.0,58998.0,0.33253]
[1724175172430,0.0755,59006.0,58998.0,0.33253]
[1724175172608,0.0755,59006.0,59005.0,0.33253]
[1724175172904,0.0765,59006.0,59005.0,0.13403]
[1724175173171,0.0765,59006.0,59005.0,0.468933]
[1724175173172,0.0755,59006.0,59005.0,0.468933]
[1724175173906,0.14195026,59006.0,59005.0,0.15703]
[1724175174124,0.001,58998.0,58997.0,0.03403]
[1724175174334,0.0765,58998.0,58997.0,0.13403]
[1724175174580,0.07845026,58998.0,58997.0,0.15703]
[1724175174788,0.07845026,58998.0,58997.0,0.13403]
[1724175175442,0.0755,58998.0,58997.0,0.13403]
[1724175175646,0.0755,58998.0,58997.0,0.14418953]
[1724175176261,0.0755,58998.0,58997.0,0.15818953]
[1724175176636,0.0755,58998.0,58997.0,0.18118953]
[1724175176850,0.07845026,58998.0,58997.0,0.18118953]
[1724175177138,0.17145026,58998.0,58997.0,0.15818953]
[1724175177356,0.17145026,58998.0,58997.0,0.04803]
[1724175177473,0.17145026,58998.0,58997.0,0.028]
[1724175177474,0.17345026,58998.0,58997.0,0.028]
[1724175178534,0.17345026,58998.0,58997.0,0.014]
[1724175178985,0.17345026,58998.0,58997.0,0.028]
[1724175179181,0.11045026,58998.0,58990.0,0.03403]
[1724175179385,0.14575026,58991.0,58990.0,0.03403]
[1724175180051,0.14575026,58991.0,58990.0,0.10002572]
[1724175180282,0.1438,58991.0,58990.0,0.20002572]
[1724175180708,0.14575026,58991.0,58990.0,0.21402572]
[1724175180915,0.14575026,58991.0,58990.0,0.23702572]
[1724175181607,0.14575026,58991.0,58990.0,0.17103]
[1724175181778,0.14575026,58991.0,58990.0,0.04803]
[1724175182814,0.14575026,58991.0,58990.0,0.06203]
[1724175183779,0.1438,58991.0,58990.0,0.08503]
[1724175183965,0.0798,58991.0,58990.0,0.08503]
[1724175184383,0.00295026,58994.0,58990.0,0.13439641]
[1724175184586,0.00295026,58994.0,58991.0,0.1]
[1724175184822,0.00295026,58993.0,58991.0,0.1]
[1724175185170,0.082,58996.0,58991.0,0.1]
[1724175185393,0.00295026,58995.0,58994.0,0.2985]
[1724175185592,0.082,58996.0,58994.0,0.2985]
[1724175185593,0.08495026,58996.0,58994.0,0.3985]
[1724175185794,0.0652,58997.0,58995.0,0.123]
[1724175185795,0.00295026,58997.0,58995.0,0.123]
[1724175186022,0.000821,58998.0,58995.0,0.123]
[1724175186432,0.00295026,58997.0,58995.0,0.123]
[1724175186764,0.00295026,58996.0,58995.0,0.123]
[1724175187724,0.00295026,58996.0,58995.0,0.137]
[1724175188128,0.00295026,58997.0,58995.0,0.137]
[1724175188560,0.000821,58998.0,58995.0,0.14733405]
[1724175189109,0.000821,58998.0,58995.0,0.13333405]
[1724175189318,0.00295026,58997.0,58995.0,0.14733405]
[1724175189521,0.00295026,58997.0,58995.0,0.21866071]
[1724175189712,0.00295026,58997.0,58995.0,0.20466071]
[1724175189831,0.001,58996.0,58995.0,0.13333405]
[1724175190063,0.00295026,58997.0,58995.0,0.16133405]
[1724175190258,0.00295026,58997.0,58995.0,0.13833405]
[1724175190259,0.001,58996.0,58995.0,0.13833405]
[1724175190512,0.001,58996.0,58995.0,0.12433405]
[1724175190513,0.14335026,58996.0,58995.0,0.12433405]
[1724175190720,0.14535026,58996.0,58995.0,0.028]
[1724175190917,0.14535026,58996.0,58995.0,0.042]
[1724175192834,0.14535026,58996.0,58995.0,0.014]
[1724175193042,0.00295026,58991.0,58990.0,0.13403]
[1724175193861,0.08015026,58991.0,58990.0,0.13403]
[1724175194185,0.08015026,58991.0,58990.0,0.14803]
[1724175194589,0.08015026,58991.0,58990.0,0.128]
[1724175194590,0.17605026,58991.0,58990.0,0.128]
[1724175194794,0.17605026,58991.0,58990.0,0.028902]
[1724175194795,0.17705026,58991.0,58990.0,0.028902]
[1724175195989,0.17705026,58991.0,58990.0,0.014902]
[1724175195990,0.17505026,58991.0,58990.0,0.014902]
[1724175196195,0.1721,58991.0,58990.0,0.048932]
[1724175196312,0.1721,58991.0,58990.0,0.062932]
[1724175196510,0.1721,58991.0,58990.0,0.148932]
[1724175196729,0.07845026,58997.0,58990.0,0.2080752]
[1724175196935,0.00295026,58997.0,58995.0,0.2985]
[1724175197988,0.001,58996.0,58995.0,0.2985]
[1724175198162,0.00295026,58996.0,58995.0,0.3985]
[1724175198510,0.002821,58998.0,58995.0,0.3985]
[1724175198511,0.00295026,58997.0,58995.0,0.3985]
[1724175198832,0.00295026,58997.0,58996.0,0.077283]
[1724175199162,0.00295026,58997.0,58996.0,0.03403]
[1724175199609,0.00295026,58997.0,58996.0,0.13403]
[1724175200105,0.00295026,58997.0,58996.0,0.16203]
[1724175203863,0.000821,58998.0,58996.0,0.16203]
[1724175204289,0.000821,58998.0,58997.0,0.0836]
[1724175204518,0.000821,58998.0,58997.0,0.24712274]
[1724175204720,0.000821,58998.0,58997.0,0.32781206]
[1724175205147,0.000821,58998.0,58997.0,0.32442274]
[1724175206329,0.000821,58998.0,58997.0,0.33842274]
[1724175206688,0.000821,58998.0,58997.0,0.35242274]
[1724175207958,0.000821,58998.0,58997.0,0.151]
[1724175208134,0.000821,58998.0,58997.0,0.051]
[1724175213173,0.000821,58998.0,58997.0,0.19248966]
[1724175213383,0.000821,58998.0,58997.0,0.2891]
[1724175215253,0.000821,58998.0,58997.0,0.295896]
[1724175215445,0.000821,58998.0,58997.0,0.35977936]
[1724175219820,0.000821,58998.0,58997.0,0.36068136]
[1724175230837,0.000821,58998.0,58997.0,0.39805461]
[1724175237175,0.000821,58998.0,58997.0,0.457198]
[1724175237176,0.078221,58998.0,58997.0,0.457198]
[1724175237381,0.078221,58998.0,58997.0,0.47157138]
[1724175238807,0.078221,58998.0,58997.0,0.17307138]
[1724175239016,0.079221,58998.0,58997.0,0.19607138]
[1724175239221,0.078221,58998.0,58997.0,0.19607138]
[1724175240270,0.14407126,58998.0,58997.0,0.135698]
[1724175240486,0.14607126,58998.0,58997.0,0.035698]
[1724175240700,0.15030925,58998.0,58997.0,0.035698]
[1724175240917,0.17262396,58998.0,58997.0,0.035698]
[1724175241123,0.14607126,58998.0,58997.0,0.028902]
[1724175241380,0.14607126,58998.0,58997.0,0.014902]
[1724175241586,0.14607126,58998.0,58997.0,0.028902]
[1724175241786,0.14607126,58998.0,58997.0,0.014902]
[1724175242011,0.14607126,58998.0,58997.0,0.026902]
[1724175242224,0.14607126,58998.0,58997.0,0.012902]
[1724175243860,0.14707126,58998.0,58997.0,0.026902]
[1724175244265,0.142121,58998.0,58997.0,0.026902]
[1724175244689,0.079221,58998.0,58997.0,0.026902]
[1724175244963,0.001821,58998.0,58997.0,0.06012314]
[1724175245458,0.081321,58998.0,58997.0,0.06012314]
[1724175245665,0.143521,58998.0,58997.0,0.026902]
[1724175246205,0.14547126,58998.0,58997.0,0.026902]
[1724175248588,0.142521,58998.0,58997.0,0.026902]
[1724175248973,0.142521,58998.0,58997.0,0.06049213]
[1724175248974,0.001821,58998.0,58997.0,0.06049213]
[1724175249171,0.001821,58998.0,58997.0,0.08349213]
[1724175249372,0.001821,58998.0,58997.0,0.049902]
[1724175250493,0.144021,58998.0,58997.0,0.026902]
[1724175251029,0.14597126,58998.0,58997.0,0.026902]
[1724175251270,0.081421,58998.0,58997.0,0.026902]
[1724175251521,0.082421,58998.0,58997.0,0.026902]
[1724175251980,0.08437126,58998.0,58997.0,0.026902]
[1724175253572,0.15310888,58998.0,58997.0,0.026902]
[1724175253819,0.14887126,58998.0,58997.0,0.026902]
[1724175264885,0.15310923,58998.0,58997.0,0.026902]
[1724175265940,0.15210923,58998.0,58997.0,0.012902]
[1724175266145,0.15310923,58998.0,58997.0,0.026902]
[1724175266779,0.28870623,58998.0,58997.0,0.014902]
[1724175266977,0.3924741,58998.0,58997.0,0.014902]
[1724175267179,0.39440247,58998.0,58997.0,0.020902]
[1724175267350,0.39440247,58998.0,58997.0,0.014902]
[1724175267351,0.41987799,58998.0,58997.0,0.014902]
[1724175267580,0.58945742,58998.0,58997.0,0.014902]
[1724175267780,0.85965242,58998.0,58997.0,0.006902]
[1724175267980,0.85965242,58998.0,58997.0,0.000902]
[1724175268605,0.86165242,58998.0,58997.0,0.000902]
[1724175269012,0.86265242,58998.0,58997.0,0.014902]
[1724175269375,0.86165242,58998.0,58997.0,0.000902]
[1724175269787,0.86465242,58998.0,58997.0,0.014902]
[1724175270011,0.86265242,58998.0,58997.0,0.014902]
[1724175270425,0.86465242,58998.0,58997.0,0.014902]
[1724175271710,1.13584742,58998.0,58997.0,0.014902]
[1724175272367,1.13584742,58998.0,58990.0,0.000902]
[1724175272368,1.29381726,58991.0,58990.0,0.000902]
[1724175272618,3.85431086,58991.0,58990.0,0.000902]
[1724175272820,5.28660045,58991.0,58990.0,0.000902]
[1724175273055,5.28660045,58991.0,58984.0,0.000902]
[1724175273056,1.21147526,58986.0,58984.0,0.000902]
[1724175273300,1.58529264,58986.0,58984.0,0.000902]
[1724175273524,1.23303145,58986.0,58984.0,0.000902]
[1724175274459,0.61243837,58986.0,58984.0,0.000902]
[1724175274672,0.61543837,58986.0,58984.0,0.000902]
[1724175274823,0.61643837,58986.0,58984.0,0.000902]
[1724175275033,0.88968836,58986.0,58984.0,0.000902]
[1724175275285,0.83903145,58986.0,58984.0,0.000902]
[1724175275686,0.84003145,58986.0,58985.0,0.0049031]
[1724175276313,0.83703145,58986.0,58985.0,0.0049031]
[1724175276921,0.84003145,58986.0,58985.0,0.0049031]
[1724175277300,0.83703145,58986.0,58985.0,0.0049031]
[1724175277717,0.56578145,58986.0,58985.0,0.0049031]
[1724175278254,0.81547526,58986.0,58985.0,0.0049031]
[1724175278596,1.08672526,58986.0,58985.0,0.0049031]
[1724175280601,0.81547526,58986.0,58985.0,0.0049031]
[1724175280752,0.81147526,58986.0,58985.0,0.0049031]
[1724175280957,0.81547526,58986.0,58985.0,0.0049031]
[1724175282687,0.81147526,58986.0,58985.0,0.0049031]
[1724175282843,1.13734124,58986.0,58985.0,0.0049031]
[1724175283051,1.16390713,58986.0,58985.0,0.0049031]
[1724175283566,1.11329115,58986.0,58985.0,0.0049031]
[1724175283897,1.11029115,58986.0,58985.0,0.0049031]
[1724175284326,1.31452312,58986.0,58985.0,0.0009031]
[1724175284530,1.21229115,58986.0,58985.0,0.0009031]
[1724175285269,1.31353252,58986.0,58985.0,0.0009031]
[1724175285855,1.31153252,58986.0,58985.0,0.0049031]
[1724175286065,1.31353252,58986.0,58985.0,0.0049031]
[1724175286268,1.31253252,58986.0,58985.0,0.0009031]
[1724175286483,1.21129115,58986.0,58985.0,0.0009031]
[1724175286684,1.21229115,58986.0,58985.0,0.0049031]
[1724175287145,1.21129115,58986.0,58985.0,0.0009031]
[1724175287320,1.28521296,58986.0,58985.0,0.0009031]
[1724175287855,1.28821296,58986.0,58985.0,0.0049031]
[1724175288393,1.28820197,58986.0,58985.0,0.0049031]
[1724175289172,0.83904115,58986.0,58985.0,0.0049031]
[1724175289309,0.56779115,58986.0,58985.0,0.0049031]
[1724175289510,0.26997526,58986.0,58985.0,0.0049031]
[1724175289740,0.54122526,58986.0,58985.0,0.0049031]
[1724175289893,0.81247526,58986.0,58985.0,0.0049031]
[1724175290099,0.83904038,58986.0,58985.0,0.0049031]
[1724175295762,0.83604038,58986.0,58985.0,0.0049031]
[1724175296966,0.83904038,58986.0,58985.0,0.0049031]
[1724175297323,0.88965292,58986.0,58985.0,0.0049031]
[1724175298400,0.83904038,58986.0,58985.0,0.0049031]
[1724175299248,0.91501154,58986.0,58985.0,0.0049031]
[1724175299804,0.91701154,58986.0,58985.0,0.0049031]
[1724175300006,1.18826154,58986.0,58985.0,0.0049031]
[1724175300204,1.11229038,58986.0,58985.0,0.0049031]
[1724175301289,1.21358526,58986.0,58985.0,0.0049031]
[1724175302087,1.21363389,58986.0,58985.0,0.0049031]
[1724175303267,1.11229038,58986.0,58985.0,0.0049031]
[1724175303711,1.10829038,58986.0,58985.0,0.0049031]
[1724175303947,0.83604038,58986.0,58985.0,0.0049031]
[1724175304303,0.96271977,58986.0,58985.0,0.0049031]
[1724175304480,0.96571977,58986.0,58985.0,0.0049031]
[1724175304892,0.96271977,58986.0,58985.0,0.0049031]
[1724175305166,0.96571977,58986.0,58985.0,0.0049031]
[1724175306019,0.96271977,58986.0,58985.0,0.0049031]
[1724175306226,0.83604038,58986.0,58985.0,0.0049031]
[1724175306432,0.79294038,58986.0,58985.0,0.0049031]
[1724175306548,0.86124038,58986.0,58985.0,0.0049031]
[1724175306751,1.13249038,58986.0,58985.0,0.0049031]
[1724175307352,1.01345724,58986.0,58985.0,0.0049031]
[1724175307560,0.86124038,58986.0,58985.0,0.0049031]
[1724175307805,1.13249038,58986.0,58985.0,0.0049031]
[1724175308204,1.28470724,58986.0,58985.0,0.0049031]
[1724175309283,1.13249038,58986.0,58985.0,0.0049031]
[1724175309613,1.30373435,58986.0,58985.0,0.0049031]
[1724175309742,1.23249038,58986.0,58985.0,0.0049031]
[1724175309944,1.23049038,58986.0,58985.0,0.0049031]
[1724175310143,1.24824375,58986.0,58985.0,0.0049031]
[1724175310348,1.24924375,58986.0,58985.0,0.0009031]
[1724175310733,1.25024375,58986.0,58985.0,0.0049031]
[1724175311391,1.26029633,58986.0,58985.0,0.0049031]
[1724175311594,1.53154633,58986.0,58985.0,0.0049031]
[1724175312442,1.26029633,58986.0,58985.0,0.0049031]
[1724175312944,1.55454633,58986.0,58985.0,0.0049031]
[1724175313887,0.91829526,58967.0,58966.0,0.0009031]
[1724175314090,1.36049838,58967.0,58966.0,0.0009031]
[1724175314710,1.53229524,58967.0,58966.0,0.0009031]
[1724175315118,1.53329524,58967.0,58966.0,0.0049031]
[1724175315541,1.53529524,58967.0,58966.0,0.0049031]
[1724175316120,1.53521747,58967.0,58966.0,0.0049031]
[1724175316459,1.02676038,58967.0,58966.0,0.0009031]
[1724175316673,1.02776038,58967.0,58966.0,0.0019031]
[1724175317296,0.26451538,58967.0,58966.0,0.0684031]
[1724175317497,0.41709223,58967.0,58966.0,0.0684031]
[1724175318077,0.41709223,58967.0,58966.0,0.0019031]
[1724175318078,0.55376123,58967.0,58966.0,0.0019031]
[1724175318254,0.40318438,58967.0,58966.0,0.0019031]
[1724175318460,0.40318438,58967.0,58966.0,0.0806031]
[1724175318461,0.26451538,58967.0,58966.0,0.0806031]
[1724175318655,0.39164467,58967.0,58966.0,0.1463031]
[1724175319239,0.39163775,58967.0,58966.0,0.1463031]
[1724175319447,0.26451538,58967.0,58966.0,0.1463031]
[1724175319653,0.39163786,58967.0,58966.0,0.1463031]
[1724175319961,0.26451538,58967.0,58966.0,0.1463031]
[1724175321268,0.39162675,58967.0,58966.0,0.1463031]
[1724175321446,0.26451538,58967.0,58966.0,0.1463031]
[1724175321893,0.26451538,58967.0,58966.0,0.0019031]
[1724175322106,1.21943939,58967.0,58966.0,0.0019031]
[1724175322308,1.62343939,58967.0,58966.0,0.0019031]
[1724175322522,1.70373939,58967.0,58966.0,0.0019031]
[1724175323302,1.70273939,58967.0,58966.0,0.0009031]
[1724175323504,1.70273939,58967.0,58966.0,0.0019031]
[1724175323707,1.70373939,58967.0,58966.0,0.0019031]
[1724175323903,1.7138324,58967.0,58966.0,0.0019031]
[1724175324427,1.7118324,58967.0,58966.0,0.0019031]
[1724175324627,1.7138324,58967.0,58966.0,0.0019031]
[1724175328335,1.7755324,58967.0,58966.0,0.0019031]
[1724175331843,1.78171937,58967.0,58966.0,0.0019031]
[1724175332784,2.05305737,58967.0,58966.0,0.0019031]
[1724175333033,2.69347235,58967.0,58966.0,0.0019031]
[1724175333706,2.69347235,58967.0,58966.0,0.0009031]
[1724175333935,2.69047235,58967.0,58966.0,0.0009031]
[1724175334137,2.69047235,58967.0,58966.0,0.0019031]
[1724175334342,2.69247235,58967.0,58966.0,0.0019031]
[1724175334739,2.69047235,58967.0,58966.0,0.0019031]
[1724175335087,2.51905737,58967.0,58966.0,0.0019031]
[1724175335287,2.52105737,58967.0,58966.0,0.00158367]
[1724175335528,2.52105737,58967.0,58966.0,0.00058367]
[1724175335727,2.52105737,58967.0,58966.0,0.00158367]
[1724175336330,2.17505737,58967.0,58966.0,0.00158367]
[1724175341425,2.51405737,58967.0,58966.0,0.00158367]
[1724175341826,2.86005737,58967.0,58966.0,0.00158367]
[1724175342031,2.68705737,58967.0,58966.0,0.00158367]
[1724175342251,2.51405737,58967.0,58966.0,0.00158367]
[1724175345485,2.51405737,58967.0,58966.0,0.00116907]
[1724175347234,2.86212033,58967.0,58966.0,0.00116907]
[1724175347437,2.34481636,58967.0,58966.0,0.00116907]
[1724175347642,2.48531636,58967.0,58966.0,0.00116907]
[1724175347849,2.65662033,58967.0,58966.0,0.00116907]
[1724175348065,2.48531636,58967.0,58966.0,0.00116907]
[1724175348681,2.50831636,58967.0,58966.0,0.00116907]
[1724175349769,2.77965436,58967.0,58966.0,0.00116907]
[1724175349939,3.12565436,58967.0,58966.0,0.00116907]
[1724175350116,2.77965436,58967.0,58966.0,0.00015338]
[1724175350926,2.77765436,58967.0,58966.0,0.00015338]
[1724175351372,1.57913126,58966.0,58965.0,0.0009031]
[1724175351578,1.72869638,58966.0,58965.0,0.0009031]
[1724175351779,1.7347663,58966.0,58965.0,0.0009031]
[1724175352516,1.8008663,58966.0,58965.0,0.0009031]
[1724175353157,2.3623663,58966.0,58965.0,0.0009031]
[1724175353521,4.26873564,58966.0,58965.0,0.0009031]
[1724175353797,4.14542795,58966.0,58965.0,0.0009031]
[1724175354401,4.14642795,58966.0,58965.0,0.0009031]
[1724175355136,4.49242795,58966.0,58965.0,0.0009031]
[1724175355469,4.49242795,58966.0,58965.0,0.00075037]
[1724175355891,4.42632795,58966.0,58965.0,0.00075037]
[1724175356296,4.32652795,58966.0,58965.0,0.00075037]
[1724175356469,4.32652795,58966.0,58965.0,0.06375037]
[1724175356471,4.32603491,58966.0,58965.0,0.06375037]
[1724175356894,4.0336243,58966.0,58965.0,0.06375037]
[1724175357313,4.0326243,58966.0,58965.0,0.06375037]
[1724175357488,4.0326243,58966.0,58965.0,0.14395037]
[1724175357489,1.3382823,58966.0,58965.0,0.14395037]
[1724175357688,1.3392823,58966.0,58965.0,0.14395037]
[1724175357920,1.51085479,58966.0,58965.0,0.14395037]
[1724175358635,1.4392823,58966.0,58965.0,0.00075037]
[1724175360647,1.0932823,58966.0,58965.0,0.00075037]
[1724175362529,1.5077243,58966.0,58965.0,0.00075037]
[1724175362680,1.4470243,58966.0,58965.0,0.00075037]
[1724175362885,1.3646243,58966.0,58965.0,0.00075037]
[1724175363880,1.8023663,58966.0,58965.0,0.00075037]
[1724175364088,1.8023663,58966.0,58965.0,9.846e-05]
[1724175365400,1.8023663,58966.0,58965.0,5.846e-05]
[1724175367277,1.3876243,58966.0,58965.0,5.846e-05]
[1724175367874,1.3646243,58966.0,58965.0,5.846e-05]
[1724175368369,1.3646243,58966.0,58965.0,0.14035846]
[1724175368370,1.61521441,58966.0,58965.0,0.14035846]
[1724175368519,1.0932823,58966.0,58965.0,0.14035846]
[1724175371004,0.9912823,58966.0,58965.0,0.14035846]
[1724175371414,0.9932823,58966.0,58965.0,0.14035846]
[1724175372047,0.9922823,58966.0,58965.0,0.14035846]
[1724175372251,0.9941033,58966.0,58965.0,0.14035846]
[1724175372662,1.0941033,58966.0,58965.0,0.14035846]
[1724175374015,1.10994823,58966.0,58965.0,0.14035846]
[1724175374353,1.10994831,58966.0,58965.0,0.14035846]
[1724175374728,1.10994823,58966.0,58965.0,0.14035846]
[1724175375790,0.83460623,58966.0,58965.0,0.14035846]
[1724175375958,0.83660619,58966.0,58965.0,0.14035846]
[1724175376960,1.10794819,58966.0,58965.0,0.14035846]
[1724175377165,1.10994819,58966.0,58965.0,5.846e-05]
[1724175378899,1.27434829,58966.0,58965.0,5.846e-05]
[1724175379101,1.54569029,58966.0,58965.0,5.846e-05]
[1724175380194,1.54469029,58966.0,58965.0,5.846e-05]
[1724175380399,1.5288453,58966.0,58965.0,5.846e-05]
[1724175380605,1.54569191,58966.0,58965.0,5.846e-05]
[1724175380816,1.54469191,58966.0,58965.0,5.846e-05]
[1724175381227,1.54569191,58966.0,58965.0,5.846e-05]
[1724175381822,1.10994991,58966.0,58965.0,5.846e-05]
[1724175383006,1.40429191,58966.0,58965.0,5.846e-05]
[1724175383451,1.13294991,58966.0,58965.0,5.846e-05]
[1724175384475,1.40429191,58966.0,58965.0,5.846e-05]
[1724175384673,1.48499191,58966.0,58965.0,5.846e-05]
[1724175385363,1.21364991,58966.0,58965.0,5.846e-05]
[1724175385594,1.13294991,58966.0,58965.0,5.846e-05]
[1724175385981,1.13294897,58966.0,58965.0,5.846e-05]
[1724175386387,1.13294963,58966.0,58965.0,5.846e-05]
[1724175387339,1.40429163,58966.0,58965.0,5.846e-05]
[1724175388386,1.48749163,58966.0,58965.0,5.846e-05]
[1724175388609,1.58976226,58959.0,58958.0,0.0009031]
[1724175388813,2.11337371,58959.0,58958.0,0.0009031]
[1724175389021,2.11945361,58959.0,58958.0,0.0009031]
[1724175389223,2.40858312,58959.0,58958.0,0.0009031]
[1724175389444,2.43158312,58959.0,58958.0,0.0009031]
[1724175390231,2.34988312,58959.0,58958.0,0.0009031]
[1724175390550,2.02838312,58959.0,58958.0,0.1461031]
[1724175390751,1.75600812,58959.0,58958.0,0.1461031]
[1724175390976,1.48463312,58959.0,58958.0,0.1461031]
[1724175392793,1.75600812,58959.0,58958.0,0.1461031]
[1724175393044,1.48463312,58959.0,58958.0,0.1461031]
[1724175393595,1.74016179,58959.0,58958.0,0.1461031]
[1724175393837,1.75600845,58959.0,58958.0,0.1461031]
[1724175394081,0.98163345,58959.0,58958.0,0.1461031]
[1724175394323,1.15350257,58959.0,58958.0,0.1461031]
[1724175394595,1.15250257,58959.0,58958.0,0.1461031]
[1724175394859,1.15150257,58959.0,58958.0,0.1461031]
[1724175395067,1.15250257,58959.0,58958.0,0.1461031]
[1724175395808,0.98063345,58959.0,58958.0,0.1461031]
[1724175397393,0.96478679,58959.0,58958.0,0.1461031]
[1724175397597,0.98063223,58959.0,58958.0,0.1461031]
[1724175397802,0.98063234,58959.0,58958.0,0.1461031]
[1724175398626,0.98363234,58959.0,58958.0,0.1461031]
[1724175399791,1.38363234,58959.0,58958.0,0.0009031]
[1724175399990,1.55550146,58959.0,58958.0,0.0009031]
[1724175400192,1.65500734,58959.0,58958.0,0.0009031]
[1724175401151,1.65500734,58959.0,58958.0,0.1411031]
[1724175401355,1.36778679,58959.0,58958.0,0.1411031]
[1724175401556,1.38363315,58959.0,58958.0,0.1411031]
[1724175401758,0.30219615,58959.0,58958.0,0.1411031]
[1724175401971,0.28444164,58959.0,58958.0,0.1411031]
[1724175402159,0.69150364,58959.0,58958.0,0.1411031]
[1724175402773,0.69150364,58959.0,58958.0,0.0651031]
[1724175402774,1.23525364,58959.0,58958.0,0.0651031]
[1724175402984,1.23425364,58959.0,58958.0,0.0651031]
[1724175403189,1.23425364,58959.0,58958.0,0.0009031]
[1724175403190,1.63625364,58959.0,58958.0,0.0009031]
[1724175403404,1.73825364,58959.0,58958.0,0.0009031]
[1724175403604,1.63130338,58959.0,58958.0,0.0619031]
[1724175403858,0.28444164,58959.0,58958.0,0.1390031]
[1724175404049,0.69213862,58959.0,58958.0,0.1390031]
[1724175404256,0.96351362,58959.0,58958.0,0.1390031]
[1724175404456,0.96451362,58959.0,58958.0,0.1390031]
[1724175404591,0.96351362,58959.0,58958.0,0.1390031]
[1724175404792,1.13543185,58959.0,58958.0,0.0619031]
[1724175405048,1.3388891,58959.0,58958.0,0.0619031]
[1724175405214,1.3358891,58959.0,58958.0,0.0619031]
[1724175405418,1.3388891,58959.0,58958.0,0.0009031]
[1724175405645,1.3368891,58959.0,58958.0,0.0009031]
[1724175405838,1.3388891,58959.0,58958.0,0.0009031]
[1724175406095,1.33493884,58959.0,58958.0,0.0009031]
[1724175406389,1.4160891,58959.0,58958.0,0.0009031]
[1724175406590,1.4170891,58959.0,58958.0,0.0009031]
[1724175406756,1.4265684,58959.0,58958.0,0.0009031]
[1724175406959,1.42657011,58959.0,58958.0,0.0009031]
[1724175407201,1.34937011,58959.0,58958.0,0.0009031]
[1724175407391,1.34937011,58959.0,58958.0,0.0613031]
[1724175407392,1.33689081,58959.0,58958.0,0.0613031]
[1724175407773,1.33989081,58959.0,58958.0,0.0009031]
[1724175407930,1.48549081,58959.0,58958.0,0.0009031]
[1724175408341,1.77986581,58959.0,58958.0,0.0009031]
[1724175409010,1.77986612,58959.0,58958.0,0.0009031]
[1724175409421,1.76401726,58959.0,58958.0,0.0009031]
[1724175409818,1.77986612,58959.0,58958.0,0.0009031]
[1724175411057,1.77986612,58959.0,58958.0,0.00073247]
[1724175411058,2.05124112,58959.0,58958.0,0.00073247]
[1724175411384,2.05124112,58959.0,58957.0,6.635e-05]
[1724175411385,1.04027626,58958.0,58957.0,6.635e-05]
[1724175411546,1.53926924,58958.0,58957.0,6.635e-05]
[1724175411697,1.54696362,58958.0,58957.0,6.635e-05]
[1724175412946,1.53111476,58958.0,58957.0,6.635e-05]
[1724175413124,1.5469647,58958.0,58957.0,6.635e-05]
[1724175413324,1.5479647,58958.0,58957.0,6.635e-05]
[1724175413572,1.79856414,58958.0,58957.0,6.635e-05]
[1724175414373,1.65586414,58958.0,58957.0,6.635e-05]
[1724175414880,1.73616414,58958.0,58957.0,6.635e-05]
[1724175415038,1.4855647,58958.0,58957.0,6.635e-05]
[1724175415914,1.4625647,58958.0,58957.0,6.635e-05]
[1724175416120,1.3822647,58958.0,58957.0,6.635e-05]
[1724175416341,1.1068857,58958.0,58957.0,6.635e-05]
[1724175416478,1.1108857,58958.0,58957.0,6.635e-05]
[1724175416681,0.83750454,58958.0,58957.0,0.06256635]
[1724175417413,0.02554216,58958.0,58957.0,0.13976635]
[1724175417721,0.02754216,58958.0,58957.0,0.13976635]
[1724175417847,0.03835999,58958.0,58957.0,0.13976635]
[1724175418045,0.16742827,58958.0,58957.0,0.13976635]
[1724175418204,0.47201533,58958.0,58957.0,0.13976635]
[1724175418413,0.74439433,58958.0,58957.0,0.13976635]
[1724175418634,0.06394733,58958.0,58957.0,0.13976635]
[1724175419050,0.05979956,58958.0,58957.0,0.13976635]
[1724175419255,0.06079956,58958.0,58957.0,0.13976635]
[1724175419457,0.05979956,58958.0,58957.0,0.13976635]
[1724175420022,0.1193274,58958.0,58957.0,0.13976635]
[1724175420154,0.08410287,58958.0,58957.0,0.13976635]
[1724175420765,0.06825509,58958.0,58957.0,0.13976635]
[1724175420965,0.03321933,58958.0,58957.0,0.13976635]
[1724175421188,0.02926907,58958.0,58957.0,0.13976635]
[1724175421662,0.03126907,58958.0,58957.0,0.13976635]
[1724175422066,0.02926907,58958.0,58957.0,0.13976635]
[1724175422469,0.01342646,58958.0,58957.0,0.13976635]
[1724175422672,0.02926893,58958.0,58957.0,0.13976635]
[1724175423100,0.02826893,58958.0,58957.0,0.1538333]
[1724175423300,0.01537672,58958.0,58957.0,0.13976635]
[1724175423511,0.01637672,58958.0,58957.0,0.13976635]
[1724175423715,0.03221681,58958.0,58957.0,0.13976635]
[1724175425752,0.03121681,58958.0,58957.0,0.13976635]
[1724175426133,0.03321681,58958.0,58957.0,0.13976635]
[1724175426544,0.03421681,58958.0,58957.0,0.13976635]
[1724175430381,0.02856655,58958.0,58957.0,0.1538333]
[1724175430617,0.02756655,58958.0,58957.0,0.1538333]
[1724175431241,0.01272646,58958.0,58957.0,0.1538333]
[1724175431674,0.01172646,58958.0,58957.0,0.1538333]
[1724175432264,0.01272646,58958.0,58957.0,0.13976635]
[1724175432487,0.01467672,58958.0,58957.0,0.13976635]
[1724175432886,0.01567672,58958.0,58957.0,0.13976635]
[1724175433115,0.01172646,58958.0,58957.0,0.13976635]
[1724175433319,0.01172646,58958.0,58957.0,0.43826635]
[1724175433746,0.01172646,58958.0,58957.0,0.4821833]
[1724175434191,0.001,58958.0,58957.0,0.4821833]
[1724175434446,0.030821,58965.0,58957.0,0.4654833]
[1724175434658,0.030821,58965.0,58964.0,0.4406]
[1724175434863,0.000821,58965.0,58964.0,0.4406]
[1724175435072,0.000821,58965.0,58964.0,0.48466]
[1724175435630,0.001821,58965.0,58964.0,0.48466]
[1724175436251,0.002821,58965.0,58964.0,0.48466]
[1724175437252,0.002821,58965.0,58964.0,0.60766]
[1724175438447,0.002821,58965.0,58964.0,0.61798531]
[1724175440056,0.002821,58965.0,58964.0,0.55092531]
[1724175440314,0.002821,58965.0,58964.0,0.2421]
[1724175440315,0.003821,58965.0,58964.0,0.2421]
[1724175440747,0.002821,58965.0,58964.0,0.2421]
[1724175442853,0.003821,58965.0,58964.0,0.2421]
[1724175443479,0.031,58958.0,58957.0,6.635e-05]
[1724175443691,0.03,58958.0,58957.0,6.635e-05]
[1724175443895,0.0425391,58958.0,58957.0,6.635e-05]
[1724175444103,0.0425391,58958.0,58957.0,0.13966635]
[1724175444307,0.0435391,58958.0,58957.0,0.15474394]